bitfinex-derivatives/quotes_BTCF0:USTF0_20251111
["timestamp","ask_amount","ask_price","bid_price","bid_amount"]
[1762871978027,0.00114384,104380.0,104370.0,0.09948163]
[1762871978234,0.00114384,104380.0,104370.0,0.19530893]
[1762871978440,0.00114384,104380.0,104370.0,0.09948163]
[1762871978737,0.00114384,104380.0,104370.0,0.19530893]
[1762871979537,0.00114384,104380.0,104370.0,0.09948163]
[1762871979734,0.00984384,104380.0,104370.0,0.09948163]
[1762871979934,0.29058666,104380.0,104370.0,0.09948163]
[1762871980135,0.29058666,104380.0,104370.0,0.04796803]
[1762871982742,0.00984384,104380.0,104370.0,0.04796803]
[1762871983040,0.29058666,104380.0,104370.0,0.02547803]
[1762871983227,0.29058666,104380.0,104370.0,0.00219803]
[1762871984144,0.29058666,104380.0,104370.0,0.02376803]
[1762871984735,0.29058666,104380.0,104370.0,0.00219803]
[1762871985238,0.29058666,104380.0,104370.0,0.04479803]
[1762871985644,0.29058666,104380.0,104370.0,0.00219803]
[1762871985838,0.29058666,104380.0,104370.0,0.04479803]
[1762871985839,0.00984384,104380.0,104370.0,0.04479803]
[1762871986046,0.00114384,104380.0,104370.0,0.04479803]
[1762871986436,0.00984384,104380.0,104370.0,0.04479803]
[1762871986637,0.29058666,104380.0,104370.0,0.04479803]
[1762871987236,0.00114384,104380.0,104370.0,0.14062543]
[1762871987635,0.00114384,104380.0,104370.0,0.19213903]
[1762871988337,0.00114384,104380.0,104370.0,0.09631163]
[1762871988740,0.00114384,104380.0,104370.0,0.19213903]
[1762871989247,0.00019213,104380.0,104370.0,0.19213903]
[1762871989842,0.28982282,104410.0,104400.0,0.05591]
[1762871990061,0.31055694,104410.0,104400.0,0.05810803]
[1762871990241,0.31055694,104410.0,104400.0,0.00219803]
[1762871990547,0.28982282,104410.0,104400.0,0.00219803]
[1762871990749,0.00908,104400.0,104390.0,0.04322384]
[1762871990936,0.28982282,104400.0,104390.0,0.04542187]
[1762871992946,0.28982282,104400.0,104390.0,0.05142187]
[1762871993550,0.29082282,104400.0,104390.0,0.05642187]
[1762871996660,0.29082282,104400.0,104390.0,0.01334187]
[1762871996959,0.31157168,104400.0,104390.0,0.01334187]
[1762871998749,0.68085168,104400.0,104390.0,0.01334187]
[1762871998949,0.68085168,104400.0,104390.0,0.05687187]
[1762871999553,0.68085168,104400.0,104390.0,0.01334187]
[1762872000256,0.68085168,104400.0,104390.0,0.05662187]
[1762872000460,0.68085168,104400.0,104390.0,0.01334187]
[1762872001252,0.00908,104370.0,104360.0,0.10374381]
[1762872001444,0.65126146,104370.0,104360.0,0.06661623]
[1762872001845,0.65126146,104370.0,104360.0,0.05382623]
[1762872002052,0.65126146,104370.0,104360.0,0.00219803]
[1762872002245,0.65126146,104370.0,104350.0,4e-08]
[1762872002246,0.81613268,104370.0,104350.0,4e-08]
[1762872002458,0.28074282,104360.0,104350.0,4e-08]
[1762872002654,0.30392392,104360.0,104350.0,0.00073273]
[1762872002860,0.67344392,104360.0,104350.0,0.00073273]
[1762872003050,1.07344392,104360.0,104350.0,0.00073273]
[1762872003361,1.07344392,104360.0,104350.0,4e-08]
[1762872003658,1.21712702,104360.0,104330.0,0.1]
[1762872003857,1.21712702,104360.0,104330.0,0.06573269]
[1762872003858,0.28074282,104340.0,104330.0,0.06573269]
[1762872004058,0.67356392,104340.0,104330.0,0.06573269]
[1762872004357,0.76941882,104340.0,104330.0,0.065]
[1762872004761,0.76941882,104340.0,104330.0,0.06573269]
[1762872004955,0.74843572,104340.0,104330.0,0.065]
[1762872005153,0.74843572,104340.0,104320.0,0.01305711]
[1762872005154,0.76940634,104340.0,104320.0,0.01305711]
[1762872005352,0.28074282,104330.0,104320.0,0.01305711]
[1762872005548,0.28294082,104330.0,104320.0,0.01305711]
[1762872005955,0.28294082,104330.0,104320.0,0.0137898]
[1762872006159,0.28294082,104330.0,104320.0,0.01305711]
[1762872006354,0.28294082,104330.0,104320.0,0.00026711]
[1762872007059,0.30387897,104330.0,104320.0,0.00026711]
[1762872007261,0.30387897,104330.0,104320.0,1e-08]
[1762872007459,0.30387897,104330.0,104320.0,0.00600001]
[1762872007658,0.30487897,104330.0,104320.0,0.01200001]
[1762872007849,0.30487897,104330.0,104320.0,0.0472327]
[1762872008254,0.30499134,104330.0,104320.0,0.02479001]
[1762872009961,0.30499134,104330.0,104300.0,0.05607]
[1762872010260,0.28074282,104310.0,104300.0,0.05607]
[1762872010461,0.28294082,104310.0,104300.0,0.05680269]
[1762872010760,0.002198,104310.0,104300.0,0.05680269]
[1762872011857,0.007198,104310.0,104300.0,0.05680269]
[1762872012053,0.015198,104310.0,104300.0,0.05780269]
[1762872012667,0.015198,104310.0,104300.0,0.15369439]
[1762872012965,0.015198,104310.0,104300.0,0.05780269]
[1762872013265,0.1110805,104310.0,104300.0,0.05780269]
[1762872013863,0.015198,104310.0,104300.0,0.15369439]
[1762872014261,0.015198,104310.0,104300.0,0.05780269]
[1762872014462,0.1110805,104310.0,104300.0,0.05780269]
[1762872014963,0.015198,104310.0,104300.0,0.05780269]
[1762872015464,0.1110805,104310.0,104300.0,0.05780269]
[1762872015660,0.39182332,104310.0,104300.0,0.05780269]
[1762872015868,0.1110805,104310.0,104300.0,0.05780269]
[1762872016061,0.39182332,104310.0,104300.0,0.05780269]
[1762872017666,0.1110805,104310.0,104300.0,0.05780269]
[1762872018254,0.39182332,104310.0,104300.0,0.05780269]
[1762872018460,0.39191024,104310.0,104300.0,0.05780269]
[1762872018868,0.29602774,104310.0,104300.0,0.05780269]
[1762872019268,0.39191024,104310.0,104300.0,0.05780269]
[1762872020361,0.39191024,104310.0,104300.0,0.01452269]
[1762872020761,0.39191024,104310.0,104300.0,0.06032269]
[1762872021570,0.38491024,104310.0,104300.0,0.06432269]
[1762872022670,0.48080174,104310.0,104280.0,0.01279]
[1762872022864,0.37664372,104290.0,104280.0,0.01279]
[1762872023064,0.37896025,104290.0,104280.0,0.01279]
[1762872023264,0.37896025,104290.0,104280.0,0.03529]
[1762872023465,0.37896025,104290.0,104280.0,0.05859]
[1762872024272,0.37896025,104290.0,104280.0,0.01279]
[1762872024567,0.37996025,104290.0,104280.0,0.01279]
[1762872024772,0.38096025,104290.0,104280.0,0.01579]
[1762872025870,0.38096025,104290.0,104270.0,0.00041829]
[1762872025871,0.78096025,104290.0,104270.0,0.00041829]
[1762872026075,0.65006282,104280.0,104270.0,0.04621829]
[1762872026277,0.65226085,104280.0,104270.0,0.04621829]
[1762872027275,0.37151803,104280.0,104270.0,0.04621829]
[1762872027475,0.65226085,104280.0,104270.0,0.04621829]
[1762872028072,0.65526085,104280.0,104270.0,0.04621829]
[1762872028769,0.65526085,104280.0,104260.0,0.01279]
[1762872028976,0.28074282,104270.0,104260.0,0.01279]
[1762872029271,0.00219803,104270.0,104260.0,0.05859]
[1762872029476,0.74814015,104270.0,104260.0,0.05859]
[1762872029776,0.74825928,104270.0,104260.0,0.05859]
[1762872030874,0.66132896,104270.0,104260.0,0.05859]
[1762872031064,0.66232896,104270.0,104260.0,0.05859]
[1762872032276,0.66232896,104270.0,104260.0,0.01279]
[1762872032477,0.66232896,104270.0,104260.0,0.05859]
[1762872032778,0.66220896,104270.0,104260.0,0.05859]
[1762872034075,0.66220896,104270.0,104260.0,0.01279]
[1762872034377,0.66220896,104270.0,104260.0,0.05859]
[1762872034777,0.6832114,104270.0,104260.0,0.05859]
[1762872034979,0.66220896,104270.0,104260.0,0.05859]
[1762872036180,0.68320957,104270.0,104260.0,0.05859]
[1762872038182,0.31404957,104270.0,104260.0,0.05859]
[1762872038379,0.31404957,104270.0,104260.0,0.01279]
[1762872038380,0.68320957,104270.0,104260.0,0.01279]
[1762872038968,0.68320957,104270.0,104260.0,0.05859]
[1762872040582,0.68320957,104270.0,104250.0,0.0588]
[1762872040782,0.287741,104260.0,104250.0,0.0588]
[1762872040983,0.65909903,104260.0,104250.0,0.0588]
[1762872041990,0.66009903,104260.0,104250.0,0.0588]
[1762872042580,0.71194398,104260.0,104240.0,0.01279]
[1762872042877,0.36916,104250.0,104230.0,0.01323984]
[1762872043079,0.00226893,104240.0,104230.0,0.01323984]
[1762872043280,0.46737583,104240.0,104230.0,0.05903984]
[1762872043888,0.65918833,104240.0,104230.0,0.00023984]
[1762872044090,0.65919303,104240.0,104220.0,0.0588]
[1762872044289,0.2877686,104230.0,104220.0,0.0588]
[1762872044590,0.28996663,104230.0,104220.0,0.0588]
[1762872044984,0.19401053,104230.0,104220.0,0.0588]
[1762872045286,0.65916663,104230.0,104220.0,0.0355]
[1762872045487,0.56321053,104230.0,104220.0,0.0588]
[1762872045686,0.37239803,104230.0,104220.0,0.0588]
[1762872045892,0.19501053,104230.0,104220.0,0.0588]
[1762872046385,0.00319803,104230.0,104220.0,0.1547653]
[1762872047091,0.00419803,104230.0,104220.0,0.1547653]
[1762872047492,0.00419803,104230.0,104220.0,0.0588]
[1762872047693,0.19601053,104230.0,104220.0,0.0588]
[1762872048884,0.00419803,104230.0,104220.0,0.0588]
[1762872049280,0.10015413,104230.0,104220.0,0.0588]
[1762872049682,0.29196663,104230.0,104220.0,0.0588]
[1762872049891,0.19601053,104230.0,104220.0,0.0588]
[1762872050487,0.29196663,104230.0,104220.0,0.0588]
[1762872050993,0.29196663,104230.0,104220.0,0.013]
[1762872051189,0.29196663,104230.0,104220.0,0.05604]
[1762872051893,0.00419803,104230.0,104220.0,0.1520053]
[1762872052094,0.00419803,104230.0,104220.0,0.3438178]
[1762872052293,7.09e-05,104240.0,104230.0,0.0959561]
[1762872052589,0.2877461,104260.0,104240.0,0.0569]
[1762872052787,0.2877461,104260.0,104250.0,0.0569]
[1762872052788,0.68020398,104260.0,104250.0,0.0569]
[1762872052982,0.68020785,104260.0,104250.0,0.01386]
[1762872053193,0.68020785,104260.0,104250.0,0.0569]
[1762872053791,0.11924239,104260.0,104250.0,0.0569]
[1762872054093,0.31105489,104260.0,104250.0,0.0569]
[1762872054289,0.31205489,104260.0,104250.0,0.0569]
[1762872055096,0.00328507,104260.0,104250.0,0.0569]
[1762872055298,0.00328507,104260.0,104250.0,0.1528377]
[1762872055592,0.00014384,104270.0,104250.0,1.30899203]
[1762872055786,0.00014384,104270.0,104260.0,0.1389685]
[1762872056095,0.00234187,104270.0,104260.0,0.04304]
[1762872056787,0.00342411,104270.0,104260.0,0.04304]
[1762872057190,0.00086054,104270.0,104260.0,0.04523803]
[1762872057391,0.0010907,104270.0,104260.0,0.04523803]
[1762872057595,0.00023388,104270.0,104260.0,0.04523803]
[1762872057791,0.00123388,104270.0,104260.0,0.04523803]
[1762872057994,0.19304638,104270.0,104260.0,0.02119]
[1762872058195,0.58327247,104270.0,104260.0,0.02443803]
[1762872058393,0.21507247,104270.0,104260.0,0.04582803]
[1762872058592,0.68019177,104270.0,104260.0,0.04582803]
[1762872058799,0.65916568,104270.0,104260.0,0.04582803]
[1762872059505,0.28996568,104270.0,104260.0,0.04582803]
[1762872060802,0.67895679,104270.0,104250.0,0.05749]
[1762872060993,0.1918125,104260.0,104250.0,0.05968803]
[1762872063202,0.1928125,104260.0,104250.0,0.05968803]
[1762872064796,0.1938125,104260.0,104250.0,0.05968803]
[1762872065803,0.002,104260.0,104250.0,0.05968803]
[1762872066400,0.1938125,104260.0,104250.0,0.05968803]
[1762872066599,0.002,104260.0,104250.0,0.05968803]
[1762872066912,0.28787334,104280.0,104250.0,0.35503986]
[1762872067098,0.0959203,104270.0,104260.0,0.04363]
[1762872067299,0.65707294,104280.0,104270.0,0.04363]
[1762872067608,0.65707294,104280.0,104270.0,0.04582803]
[1762872068406,0.65807294,104280.0,104270.0,0.04582803]
[1762872070702,0.46626044,104280.0,104270.0,0.04582803]
[1762872070897,0.09705394,104280.0,104270.0,0.04582803]
[1762872071097,0.28886644,104280.0,104270.0,0.04582803]
[1762872072903,0.25431901,104280.0,104270.0,0.04582803]
[1762872073099,0.6568805,104290.0,104270.0,0.14174733]
[1762872073304,0.6568805,104290.0,104280.0,0.04363]
[1762872073599,0.36916,104290.0,104280.0,0.14173813]
[1762872073799,0.5609725,104290.0,104280.0,0.04582803]
[1762872074403,0.001,104290.0,104280.0,0.14173813]
[1762872075007,0.56111634,104300.0,104280.0,0.14173813]
[1762872075008,0.00014384,104300.0,104290.0,0.1395309]
[1762872075307,0.4752525,104330.0,104320.0,0.03616]
[1762872075511,0.5711254,104330.0,104320.0,0.05974803]
[1762872076815,0.00014384,104340.0,104330.0,0.04363]
[1762872077115,0.09599874,104340.0,104330.0,0.04582803]
[1762872079208,0.28781124,104340.0,104330.0,0.04782803]
[1762872080204,0.28881124,104340.0,104330.0,0.005]
[1762872080404,0.28881124,104340.0,104310.0,0.02343384]
[1762872080608,0.1918125,104320.0,104310.0,0.00234187]
[1762872081909,0.1918125,104320.0,104310.0,0.00014384]
[1762872082121,0.2876858,104320.0,104310.0,0.00314384]
[1762872082315,0.2886858,104320.0,104310.0,0.00614384]
[1762872082916,0.2886858,104320.0,104310.0,0.00834187]
[1762872083616,0.2886858,104320.0,104310.0,0.00534187]
[1762872083917,0.2896858,104320.0,104310.0,0.00734187]
[1762872084620,0.2896858,104320.0,104310.0,0.00514384]
[1762872085114,0.4814983,104320.0,104310.0,0.00514384]
[1762872085316,0.2896858,104320.0,104310.0,0.00514384]
[1762872085515,0.2896858,104320.0,104310.0,0.00734187]
[1762872086113,0.4814983,104320.0,104310.0,0.00514384]
[1762872086823,0.0959009,104290.0,104280.0,0.0591045]
[1762872087120,0.4648972,104300.0,104290.0,0.04727803]
[1762872087319,0.369,104300.0,104290.0,0.04727803]
[1762872087508,0.6566969,104310.0,104300.0,0.05803]
[1762872087708,0.6566969,104310.0,104300.0,0.01514803]
[1762872087909,0.6566969,104310.0,104300.0,0.01295]
[1762872088113,0.6566969,104310.0,104290.0,0.00014384]
[1762872088318,0.1938125,104300.0,104290.0,0.00234187]
[1762872089022,0.1918125,104300.0,104290.0,0.00234187]
[1762872089722,0.1938125,104300.0,104290.0,0.00234187]
[1762872090215,0.1938125,104300.0,104290.0,0.00014384]
[1762872090421,0.1938125,104300.0,104280.0,0.0001045]
[1762872090612,0.5608125,104290.0,104280.0,0.0001045]
[1762872091715,0.70411631,104290.0,104280.0,0.0001045]
[1762872091914,1.12502573,104290.0,104270.0,0.00038359]
[1762872092123,0.1918125,104280.0,104270.0,0.00038359]
[1762872092322,0.383625,104280.0,104270.0,0.00038359]
[1762872092827,0.0959377,104250.0,104240.0,0.05803]
[1762872093119,0.09601252,104250.0,104240.0,0.06022803]
[1762872093322,0.37740198,104250.0,104230.0,0.00023984]
[1762872093522,0.36904,104240.0,104230.0,0.00243787]
[1762872093830,0.36904,104240.0,104230.0,0.02572787]
[1762872094023,0.37754582,104250.0,104230.0,0.02572787]
[1762872094224,0.36904,104240.0,104230.0,0.04751787]
[1762872095016,0.37004,104240.0,104230.0,0.04751787]
[1762872095617,0.4659869,104240.0,104230.0,0.04751787]
[1762872095818,0.4669869,104240.0,104230.0,0.04751787]
[1762872096124,0.4670269,104240.0,104230.0,0.04751787]
[1762872099122,0.4670669,104240.0,104230.0,0.04751787]
[1762872103630,0.37112,104240.0,104230.0,0.04751787]
[1762872103829,0.002,104240.0,104230.0,0.14347397]
[1762872104033,0.002,104240.0,104230.0,0.04751787]
[1762872104034,0.37116,104240.0,104230.0,0.04751787]
[1762872105128,0.002,104240.0,104230.0,0.04751787]
[1762872105822,0.002,104240.0,104230.0,0.14347397]
[1762872106331,0.002,104240.0,104230.0,0.04751787]
[1762872106934,0.002,104240.0,104230.0,0.14347397]
[1762872107939,0.002,104240.0,104230.0,0.38331397]
[1762872108735,0.002,104240.0,104230.0,0.54347397]
[1762872108936,0.002,104240.0,104230.0,0.38331397]
[1762872109237,0.002,104240.0,104230.0,0.14347397]
[1762872109430,0.002,104240.0,104230.0,0.38331397]
[1762872109630,0.09615636,104250.0,104240.0,0.1544669]
[1762872109931,0.4650843,104270.0,104260.0,0.05772]
[1762872110235,0.4650843,104270.0,104260.0,0.05991803]
[1762872110930,0.37730606,104280.0,104270.0,0.04447]
[1762872110931,0.09605904,104280.0,104270.0,0.04447]
[1762872111136,0.09605904,104280.0,104270.0,0.04666803]
[1762872113133,0.09605904,104280.0,104270.0,0.14258733]
[1762872113134,0.09705904,104280.0,104270.0,0.14258733]
[1762872113535,0.09705904,104280.0,104270.0,0.04666803]
[1762872114738,0.09705904,104280.0,104270.0,0.14258733]
[1762872115632,0.09705904,104280.0,104270.0,0.04666803]
[1762872116441,0.7475685,104280.0,104270.0,0.05991803]
[1762872116734,0.7475685,104280.0,104270.0,0.01544803]
[1762872117137,0.7475685,104280.0,104270.0,0.05991803]
[1762872119237,0.46617904,104280.0,104270.0,0.05991803]
[1762872119440,0.7475685,104280.0,104270.0,0.01544803]
[1762872119636,0.7475685,104280.0,104270.0,0.00219803]
[1762872120031,1.1475685,104280.0,104260.0,0.03469]
[1762872120237,0.28138946,104270.0,104260.0,0.01544803]
[1762872120527,0.65046946,104270.0,104260.0,0.00219803]
[1762872120737,0.65046946,104270.0,104260.0,0.02363803]
[1762872120738,0.36908,104270.0,104260.0,0.02363803]
[1762872120942,0.36908,104270.0,104260.0,0.04581803]
[1762872121138,0.3784485,104280.0,104260.0,0.04681803]
[1762872121334,0.36908,104270.0,104260.0,0.04681803]
[1762872122044,0.4659993,104270.0,104260.0,0.04681803]
[1762872122237,0.37008,104270.0,104260.0,0.04681803]
[1762872122537,0.37008,104270.0,104260.0,0.14274653]
[1762872123038,0.46513924,104280.0,104270.0,0.1395393]
[1762872123243,0.46513924,104280.0,104270.0,0.04581803]
[1762872123840,0.46513924,104280.0,104270.0,0.00219803]
[1762872124346,0.46613924,104280.0,104270.0,0.00319803]
[1762872124546,0.7475287,104280.0,104270.0,0.00319803]
[1762872126547,0.7475287,104280.0,104270.0,0.04681803]
[1762872126940,0.46613924,104280.0,104270.0,0.04681803]
[1762872127141,0.09705924,104280.0,104270.0,0.04681803]
[1762872127342,0.46613924,104280.0,104270.0,0.04681803]
[1762872128252,0.7475287,104280.0,104270.0,0.00319803]
[1762872129949,0.39944151,104280.0,104250.0,0.01339384]
[1762872130250,0.37731796,104260.0,104250.0,0.00234187]
[1762872130842,0.37731796,104260.0,104250.0,0.00014384]
[1762872131043,0.39830852,104260.0,104250.0,0.00434187]
[1762872131348,0.37731796,104260.0,104250.0,0.04796187]
[1762872131551,0.0959285,104260.0,104250.0,0.04796187]
[1762872131953,0.11692229,104260.0,104250.0,0.04796187]
[1762872132843,0.11792229,104260.0,104250.0,0.04796187]
[1762872133043,0.11792229,104260.0,104250.0,0.04596187]
[1762872133245,0.40031175,104260.0,104250.0,0.04696187]
[1762872133445,0.11892229,104260.0,104250.0,0.04696187]
[1762872133649,0.0979285,104260.0,104250.0,0.04696187]
[1762872133848,0.09606284,104280.0,104270.0,0.04362]
[1762872134063,0.09606284,104280.0,104270.0,0.04581803]
[1762872135349,0.00014384,104280.0,104270.0,0.14273733]
[1762872135540,0.00014384,104280.0,104270.0,0.04681803]
[1762872136556,0.00114384,104280.0,104270.0,0.04681803]
[1762872136750,0.00214384,104280.0,104270.0,0.04881803]
[1762872137453,0.00214384,104280.0,104270.0,0.14473733]
[1762872138458,0.00214384,104280.0,104270.0,0.19597686]
[1762872138844,0.00214384,104280.0,104270.0,0.10005756]
[1762872139047,0.09805394,104280.0,104270.0,0.10005756]
[1762872139856,0.3794434,104280.0,104270.0,0.10005756]
[1762872140057,0.7484834,104280.0,104270.0,0.04881803]
[1762872140957,0.71393383,104280.0,104270.0,0.00519803]
[1762872141258,0.71393383,104280.0,104270.0,0.04904803]
[1762872141448,0.43254437,104280.0,104270.0,0.04904803]
[1762872141653,0.71393383,104280.0,104270.0,0.04904803]
[1762872142251,0.73496851,104280.0,104270.0,0.003]
[1762872144561,0.73496851,104280.0,104270.0,0.00069809]
[1762872144751,1.23088721,104280.0,104250.0,0.00014384]
[1762872144955,0.28138946,104260.0,104250.0,0.00234187]
[1762872145150,0.65042946,104260.0,104250.0,0.00234187]
[1762872145351,0.74635796,104260.0,104250.0,0.00234187]
[1762872145551,0.76739373,104260.0,104250.0,0.00234187]
[1762872146354,0.76839373,104260.0,104250.0,0.00234187]
[1762872146549,0.0969285,104260.0,104250.0,0.04619187]
[1762872146753,0.4314117,104260.0,104250.0,0.04619187]
[1762872147556,0.4314117,104260.0,104250.0,0.04719187]
[1762872147557,0.0633717,104260.0,104250.0,0.04719187]
[1762872147755,0.4324517,104260.0,104250.0,0.04719187]
[1762872148268,0.0633717,104260.0,104250.0,0.04719187]
[1762872148558,0.4324517,104260.0,104250.0,0.04719187]
[1762872148956,0.4324517,104260.0,104250.0,0.04919187]
[1762872149568,0.37108,104260.0,104250.0,0.04919187]
[1762872149764,0.4670085,104260.0,104250.0,0.04919187]
[1762872149965,0.0979285,104260.0,104250.0,0.04919187]
[1762872150561,0.4670085,104260.0,104250.0,0.04919187]
[1762872151058,0.0979285,104260.0,104250.0,0.04919187]
[1762872151257,0.37108,104260.0,104250.0,0.04919187]
[1762872151455,0.4670085,104260.0,104250.0,0.04919187]
[1762872151656,0.37108,104260.0,104250.0,0.04919187]
[1762872151858,0.4670085,104260.0,104250.0,0.04919187]
[1762872152961,0.0959285,104260.0,104250.0,0.04919187]
[1762872154564,0.09606854,104270.0,104260.0,0.05767]
[1762872154863,0.09606854,104270.0,104260.0,0.11110756]
[1762872154864,0.46514854,104270.0,104260.0,0.11110756]
[1762872155064,0.46514854,104270.0,104260.0,0.05986803]
[1762872155263,0.46514854,104270.0,104260.0,0.11110756]
[1762872156057,0.46614854,104270.0,104260.0,0.11310756]
[1762872157067,0.6579785,104270.0,104260.0,0.11310756]
[1762872157866,0.2888985,104270.0,104260.0,0.11310756]
[1762872158260,0.2888985,104270.0,104260.0,0.06186803]
[1762872158968,0.2888985,104270.0,104260.0,0.01801803]
[1762872159178,0.2888985,104270.0,104260.0,0.002]
[1762872159466,0.30971777,104270.0,104260.0,0.002]
[1762872159664,0.67875777,104270.0,104260.0,0.002]
[1762872160669,0.67875777,104270.0,104250.0,0.00214384]
[1762872160964,0.19182996,104260.0,104250.0,0.00214384]
[1762872161267,0.19182996,104260.0,104230.0,0.05147937]
[1762872161268,0.0959469,104240.0,104230.0,0.05147937]
[1762872161460,0.65681686,104240.0,104230.0,0.00243787]
[1762872162266,0.65681686,104240.0,104230.0,0.00023984]
[1762872162464,0.67762782,104240.0,104230.0,0.00023984]
[1762872163568,0.67862782,104240.0,104230.0,0.00023984]
[1762872163874,0.30958782,104240.0,104230.0,0.00023984]
[1762872164074,0.67866782,104240.0,104230.0,0.00023984]
[1762872164465,0.30958782,104240.0,104230.0,0.00023984]
[1762872164664,0.67866782,104240.0,104230.0,0.00023984]
[1762872164969,0.67866782,104240.0,104230.0,0.02429787]
[1762872166566,0.48683786,104240.0,104230.0,0.02429787]
[1762872166765,0.30958782,104240.0,104230.0,0.04628787]
[1762872166973,0.67866782,104240.0,104230.0,0.04628787]
[1762872167271,0.65785686,104240.0,104230.0,0.00243787]
[1762872167665,0.67863143,104240.0,104230.0,0.00243787]
[1762872168064,0.65785686,104240.0,104230.0,0.04628787]
[1762872168266,0.28877686,104240.0,104230.0,0.04628787]
[1762872168465,0.65789686,104240.0,104230.0,0.04628787]
[1762872170668,0.4660669,104240.0,104230.0,0.04628787]
[1762872170873,0.65789686,104240.0,104230.0,0.04628787]
[1762872171478,0.65789686,104240.0,104230.0,0.00243787]
[1762872172080,0.67867707,104240.0,104230.0,0.00243787]
[1762872174668,0.67867707,104240.0,104230.0,0.04663787]
[1762872175578,0.65789686,104240.0,104230.0,0.04663787]
[1762872175774,0.67867298,104240.0,104230.0,0.00243787]
[1762872175979,0.67867298,104240.0,104230.0,0.02526787]
[1762872176177,0.67867298,104240.0,104230.0,0.04663787]
[1762872178281,0.67867298,104240.0,104230.0,0.05946787]
[1762872179590,0.65789686,104240.0,104230.0,0.05946787]
[1762872180875,0.65789686,104240.0,104230.0,0.01526787]
[1762872181580,0.96644386,104240.0,104220.0,0.01369384]
[1762872181783,0.19182996,104230.0,104220.0,0.01589187]
[1762872181985,0.28778606,104230.0,104220.0,0.03741187]
[1762872182183,0.28778606,104230.0,104220.0,0.05952187]
[1762872182883,0.24952605,104230.0,104220.0,0.05952187]
[1762872183084,0.71558415,104240.0,104230.0,0.05646]
[1762872183085,0.61963685,104240.0,104230.0,0.05646]
[1762872183281,0.7939101,104240.0,104230.0,0.05865803]
[1762872183484,0.7939101,104240.0,104230.0,0.01502803]
[1762872184383,0.4867702,104240.0,104230.0,0.05865803]
[1762872184884,0.7939101,104240.0,104230.0,0.05865803]
[1762872185587,0.7929101,104240.0,104230.0,0.05865803]
[1762872186088,0.7929101,104240.0,104230.0,0.03654803]
[1762872186282,0.7929101,104240.0,104230.0,0.01502803]
[1762872186786,0.7939101,104240.0,104230.0,0.01502803]
[1762872187484,0.7939101,104240.0,104220.0,0.01369384]
[1762872187783,0.15356995,104230.0,104220.0,0.05952187]
[1762872187987,0.15356995,104230.0,104220.0,0.15548717]
[1762872188283,0.25052405,104240.0,104220.0,0.15548717]
[1762872188284,0.25052405,104240.0,104230.0,0.03435]
[1762872188489,0.64039281,104240.0,104230.0,0.01502803]
[1762872188687,0.48682286,104240.0,104230.0,0.03654803]
[1762872188986,0.48582286,104240.0,104230.0,0.01502803]
[1762872189286,0.94753271,104240.0,104230.0,0.00219803]
[1762872189600,0.0959561,104230.0,104220.0,0.01297384]
[1762872189783,0.42384476,104230.0,104220.0,0.05880187]
[1762872189988,0.27027481,104230.0,104220.0,0.05880187]
[1762872190388,0.27027481,104230.0,104220.0,0.01517187]
[1762872190588,0.42384476,104230.0,104220.0,0.01517187]
[1762872190784,0.27027481,104230.0,104220.0,0.05880187]
[1762872191189,0.42384476,104230.0,104220.0,0.01517187]
[1762872191394,0.11670486,104230.0,104220.0,0.01517187]
[1762872191582,0.27027481,104230.0,104220.0,0.05880187]
[1762872192295,0.27127481,104230.0,104220.0,0.05880187]
[1762872193192,0.42484476,104230.0,104220.0,0.05880187]
[1762872194192,0.02174876,104230.0,104220.0,0.05880187]
[1762872194387,0.42484476,104230.0,104220.0,0.05880187]
[1762872195296,0.27127481,104230.0,104220.0,0.05880187]
[1762872195692,0.42484476,104230.0,104220.0,0.05880187]
[1762872196493,0.27127481,104230.0,104220.0,0.05880187]
[1762872197494,0.42484476,104230.0,104220.0,0.05880187]
[1762872197694,0.42484476,104230.0,104220.0,0.03669187]
[1762872197896,0.42484476,104230.0,104220.0,0.05880187]
[1762872199101,0.42484476,104230.0,104220.0,0.01517187]
[1762872199397,0.42484476,104230.0,104220.0,4e-08]
[1762872199588,0.42631011,104230.0,104220.0,0.00508807]
[1762872199788,0.79539011,104230.0,104220.0,0.00508807]
[1762872200701,0.79539011,104230.0,104210.0,0.01297384]
[1762872200998,0.3071399,104220.0,104210.0,0.05739651]
[1762872201190,0.33008669,104220.0,104210.0,0.05739651]
[1762872201391,0.33008669,104220.0,104210.0,0.03486651]
[1762872201592,0.33008669,104220.0,104210.0,0.05739651]
[1762872201793,0.42605199,104220.0,104210.0,0.05739651]
[1762872202300,0.42605199,104220.0,104210.0,0.03486651]
[1762872202494,0.42705199,104220.0,104210.0,0.03486651]
[1762872202899,0.42705199,104220.0,104210.0,0.01370651]
[1762872203497,0.42705199,104220.0,104210.0,0.00087651]
[1762872203695,0.58062194,104220.0,104210.0,0.00014384]
[1762872203889,0.58062194,104220.0,104180.0,0.09685412]
[1762872203890,0.72501284,104220.0,104180.0,0.09685412]
[1762872204089,0.15356995,104200.0,104180.0,0.05389679]
[1762872204400,0.46727093,104190.0,104180.0,0.06436696]
[1762872204599,0.00219803,104190.0,104180.0,0.06436696]
[1762872204900,0.00227188,104190.0,104180.0,0.06436696]
[1762872205301,0.77448468,104190.0,104180.0,0.06436696]
[1762872205496,0.52492183,104190.0,104180.0,0.06436696]
[1762872206003,0.00227188,104190.0,104180.0,0.16036906]
[1762872206201,0.25383473,104190.0,104180.0,0.06436696]
[1762872206590,0.40740468,104190.0,104180.0,0.06436696]
[1762872206795,0.40740468,104190.0,104180.0,0.02067696]
[1762872206998,0.42819701,104190.0,104180.0,0.00690696]
[1762872207996,0.12105711,104190.0,104180.0,0.00690696]
[1762872208197,0.42819701,104190.0,104180.0,0.00690696]
[1762872208604,0.42819701,104190.0,104180.0,0.00617429]
[1762872209197,0.40740468,104190.0,104180.0,0.00617429]
[1762872209399,0.40740468,104190.0,104180.0,0.00690696]
[1762872209614,0.00427188,104190.0,104180.0,0.20416691]
[1762872209798,0.52696183,104190.0,104180.0,0.05059696]
[1762872209997,0.53196183,104190.0,104180.0,0.20416691]
[1762872210198,0.62795473,104190.0,104180.0,0.05059696]
[1762872211605,0.53196183,104190.0,104180.0,0.05059696]
[1762872211903,0.53192183,104190.0,104180.0,0.05059696]
[1762872212101,0.62791473,104190.0,104180.0,0.05059696]
[1762872212303,0.53192183,104190.0,104180.0,0.20416691]
[1762872212700,0.62791473,104190.0,104180.0,0.05059696]
[1762872212900,0.62802501,104190.0,104180.0,0.05059696]
[1762872215804,0.62802501,104190.0,104180.0,0.02806696]
[1762872216209,0.78170524,104190.0,104180.0,0.00617429]
[1762872216603,0.78170524,104190.0,104160.0,0.05746]
[1762872216802,0.24969153,104170.0,104160.0,0.00073267]
[1762872217011,0.52495826,104170.0,104160.0,0.02189267]
[1762872217306,0.37127803,104170.0,104160.0,0.04442267]
[1762872218810,0.00219803,104170.0,104160.0,0.14044327]